fUST/lending_fUST_20250626
["ID","MTS","AMOUNT","RATE_DAILY","PERIOD"]
[367670898,1750891853178,-460.0,0.00018082,2]
[367670899,1750891853188,-460.0,0.00018082,2]
[367670900,1750891853198,-460.0,0.00018082,2]
[367670901,1750891853208,-460.0,0.00018082,2]
[367670902,1750891853217,-460.0,0.00018082,2]
[367670903,1750891853227,-460.0,0.00018082,2]
[367670904,1750891853237,-460.0,0.00018082,2]
[367670905,1750891853246,-693.92,0.00018082,2]
[367670906,1750891853256,-771.68,0.00018082,2]
[367670907,1750891853265,-460.0,0.00018082,2]
[367670908,1750891853275,-460.0,0.00018082,2]
[367670909,1750891853284,-807.81,0.00018082,2]
[367670910,1750891853294,-460.0,0.00018082,2]
[367670911,1750891853303,-711.88,0.00018082,2]
[367670912,1750891853312,-460.0,0.00018082,2]
[367670913,1750891853322,-460.0,0.00018082,2]
[367670914,1750891853331,-460.0,0.00018082,2]
[367670915,1750891853342,-460.0,0.00018082,2]
[367670916,1750891853353,-460.0,0.00018082,2]
[367670917,1750891853363,-460.0,0.00018082,2]
[367670918,1750891853372,-613.06,0.00018082,2]
[367670919,1750891853381,-460.0,0.00018082,2]
[367670920,1750891853391,-460.0,0.00018082,2]
[367670921,1750891853400,-460.0,0.00018082,2]
[367670922,1750891853409,-3085.09,0.00018082,2]
[367670923,1750891853419,-460.0,0.00018082,2]
[367670924,1750891853429,-156.537637,0.00018082,2]
[367670925,1750891853438,-151.0,0.00018082,2]
[367670926,1750891853447,-156.537637,0.00018082,2]
[367670927,1750891853456,-1930.66,0.00018082,2]
[367670928,1750891853466,-455.6333646,0.00018082,2]
[367670929,1750891853475,-460.0,0.00018082,2]
[367670930,1750891853484,-212.5,0.00018082,2]
[367670931,1750891853494,-460.0,0.00018082,2]
[367670932,1750891853504,-460.0,0.00018082,2]
[367670933,1750891853513,-460.0,0.00018082,2]
[367670934,1750891853522,-1847.84,0.00018082,2]
[367670935,1750891853532,-1162.98,0.00018082,2]
[367670936,1750891853541,-460.0,0.00018082,2]
[367670937,1750891853551,-856.31,0.00018082,2]
[367670938,1750891853560,-460.0,0.00018082,2]
[367670939,1750891853569,-460.0,0.00018082,2]
[367670940,1750891853578,-165.9966585,0.00018082,2]
[367670941,1750891853588,-1500.0,0.0001814,2]
[367670942,1750891853598,-502.40315064,0.0001814,2]
[367670943,1750891853607,-460.0,0.00018356,2]
[367670944,1750891853617,-460.0,0.00018356,2]
[367670945,1750891853626,-460.0,0.00018356,2]
[367670946,1750891853635,-543.48,0.00018356,2]
[367670947,1750891853644,-400.03,0.00018356,2]
[367670948,1750891853654,-716.39,0.00018356,2]
[367670949,1750891853664,-809.74,0.00018356,2]
[367670950,1750891853674,-1048.8,0.00018356,2]
[367670951,1750891853683,-504.26,0.00018356,2]
[367670952,1750891853694,-460.0,0.00018356,2]
[367670953,1750891853704,-460.0,0.00018356,2]
[367670954,1750891853714,-465.4,0.00018356,2]
[367670955,1750891853724,-460.0,0.00018356,2]
[367670956,1750891853737,-460.0,0.00018356,2]
[367670957,1750891853746,-742.19,0.00018356,2]
[367670958,1750891853755,-460.0,0.00018356,2]
[367670959,1750891853765,-421.17,0.00018356,2]
[367670960,1750891853775,-460.0,0.00018356,2]
[367670961,1750891853784,-369.37,0.00018356,2]
[367670962,1750891853794,-460.0,0.00018356,2]
[367670963,1750891853803,-460.0,0.00018356,2]
[367670964,1750891853812,-175.57,0.00018356,2]
[367670965,1750891853822,-693.92,0.00018356,2]
[367670966,1750891853831,-771.68,0.00018356,2]
[367670967,1750891853842,-460.0,0.00018356,2]
[367670968,1750891853852,-807.81,0.00018356,2]
[367670969,1750891853861,-460.0,0.00018356,2]
[367670970,1750891853871,-711.88,0.00018356,2]
[367670971,1750891853880,-460.0,0.00018356,2]
[367670972,1750891853890,-460.0,0.00018356,2]
[367670973,1750891853899,-460.0,0.00018356,2]
[367670974,1750891853908,-460.0,0.00018356,2]
[367670975,1750891853918,-460.0,0.00018356,2]
[367670976,1750891853927,-613.06,0.00018356,2]
[367670977,1750891853936,-460.0,0.00018356,2]
[367670978,1750891853945,-460.0,0.00018356,2]
[367670979,1750891853955,-460.0,0.00018356,2]
[367670980,1750891853965,-3085.09,0.00018356,2]
[367670981,1750891853975,-460.0,0.00018356,2]
[367670982,1750891853984,-1930.66,0.00018356,2]
[367670983,1750891853994,-245.23808075,0.00018356,2]
[367670984,1750891854004,-496.04,0.00018356,2]
[367670985,1750891854015,-460.0,0.00018356,2]
[367670986,1750891854029,-460.0,0.00018356,2]
[367670987,1750891854039,-1847.84,0.00018356,2]
[367670988,1750891854048,-1162.98,0.00018356,2]
[367670989,1750891854058,-460.0,0.00018356,2]
[367670990,1750891854067,-856.31,0.00018356,2]
[367670991,1750891854076,-460.0,0.00018356,2]
[367670992,1750891854085,-460.0,0.0001863,2]
[367670993,1750891854096,-334.97505204,0.0001863,2]
[367670994,1750891854105,-538.80787735,0.0001863,2]
[367670995,1750891854114,-543.48,0.0001863,2]
[367670996,1750891854124,-716.39,0.0001863,2]
[367670997,1750891854132,-809.74,0.0001863,2]
[367670998,1750891854142,-1048.8,0.0001863,2]
[367670999,1750891854152,-383.29,0.0001863,2]
[367671000,1750891854161,-460.0,0.0001863,2]
[367671001,1750891854172,-465.4,0.0001863,2]
[367671002,1750891854183,-460.0,0.0001863,2]
[367671003,1750891854193,-460.0,0.0001863,2]
[367671004,1750891854203,-742.19,0.0001863,2]
[367671005,1750891854214,-460.0,0.0001863,2]
[367671006,1750891854226,-460.0,0.0001863,2]
[367671007,1750891854237,-351.61,0.0001863,2]
[367671008,1750891854247,-460.0,0.0001863,2]
[367671009,1750891854256,-693.92,0.0001863,2]
[367671010,1750891854266,-771.68,0.0001863,2]
[367671011,1750891854275,-460.0,0.0001863,2]
[367671012,1750891854285,-807.81,0.0001863,2]
[367671013,1750891854294,-480.33,0.0001863,2]
[367671014,1750891854304,-711.88,0.0001863,2]
[367671015,1750891854315,-460.0,0.0001863,2]
[367671016,1750891854325,-460.0,0.0001863,2]
[367671017,1750891854335,-460.0,0.0001863,2]
[367671018,1750891854346,-460.0,0.0001863,2]
[367671019,1750891854356,-460.0,0.0001863,2]
[367671020,1750891854365,-613.06,0.0001863,2]
[367671021,1750891854374,-460.0,0.0001863,2]
[367671022,1750891854384,-460.0,0.0001863,2]
[367671023,1750891854393,-226.74,0.0001863,2]
[367671024,1750891854403,-3085.09,0.0001863,2]
[367671025,1750891854412,-460.0,0.0001863,2]
[367671026,1750891854422,-1930.66,0.0001863,2]
[367671027,1750891854431,-460.0,0.0001863,2]
[367671028,1750891854440,-460.0,0.0001863,2]
[367671029,1750891854449,-1847.84,0.0001863,2]
[367671030,1750891854458,-1162.98,0.0001863,2]
[367671031,1750891854468,-460.0,0.0001863,2]
[367671032,1750891854477,-856.31,0.0001863,2]
[367671033,1750891854487,-151.0,0.000189,2]
[367671034,1750891854496,-151.0,0.000189,2]
[367671035,1750891854506,-990.716068,0.000189,2]
[367671036,1750891854516,-990.716068,0.000189,2]
[367671037,1750891854525,-4341.48809129,0.000189,2]
[367671038,1750891854535,-210.2,0.00018904,2]
[367671039,1750891854544,-543.48,0.00018904,2]
[367671040,1750891854554,-716.39,0.00018904,2]
[367671041,1750891854565,-809.74,0.00018904,2]
[367671042,1750891854579,-1048.8,0.00018904,2]
[367671043,1750891854595,-465.4,0.00018904,2]
[367671044,1750891854606,-460.0,0.00018904,2]
[367671045,1750891854615,-559.24609903,0.00018904,2]
[367671046,1750891854624,-742.19,0.00018904,2]
[367671047,1750891854633,-460.0,0.00018904,2]
[367671048,1750891854642,-235.74,0.00018904,2]
[367671049,1750891854652,-341.42,0.00018904,2]
[367671050,1750891854662,-693.92,0.00018904,2]
[367671051,1750891854671,-771.68,0.00018904,2]
[367671052,1750891854680,-460.0,0.00018904,2]
[367671053,1750891854689,-807.81,0.00018904,2]
[367671054,1750891854699,-711.88,0.00018904,2]
[367671055,1750891854708,-460.0,0.00018904,2]
[367671056,1750891854717,-460.0,0.00018904,2]
[367671057,1750891854726,-460.0,0.00018904,2]
[367671058,1750891854735,-460.0,0.00018904,2]
[367671059,1750891854744,-460.0,0.00018904,2]
[367671060,1750891854754,-613.06,0.00018904,2]
[367671061,1750891854764,-460.0,0.00018904,2]
[367671062,1750891854773,-460.0,0.00018904,2]
[367671063,1750891854782,-3085.09,0.00018904,2]
[367671064,1750891854792,-460.0,0.00018904,2]
[367671065,1750891854801,-1930.66,0.00018904,2]
[367671066,1750891854811,-460.0,0.00018904,2]
[367671067,1750891854821,-460.0,0.00018904,2]
[367671068,1750891854830,-1847.84,0.00018904,2]
[367671069,1750891854839,-1162.98,0.00018904,2]
[367671070,1750891854851,-460.0,0.00018904,2]
[367671071,1750891854860,-856.31,0.00018904,2]
[367671072,1750891854869,-287.61097249,0.00019059,2]
[367671073,1750891854878,-207.4,0.00019065,2]
[367671074,1750891854887,-5000.0,0.00019065,2]
[367671075,1750891854897,-618.66015837,0.00019065,2]
[367671076,1750891854907,-25000.0,0.00019065,2]
[367671077,1750891854917,-5526.19087151,0.00019065,2]
[367671078,1750891854929,-543.48,0.00019178,2]
[367671079,1750891854940,-716.39,0.00019178,2]
[367671080,1750891854949,-809.74,0.00019178,2]
[367671081,1750891854958,-1048.8,0.00019178,2]
[367671082,1750891854968,-465.4,0.00019178,2]
[367671083,1750891854977,-460.0,0.00019178,2]
[367671084,1750891854987,-742.19,0.00019178,2]
[367671085,1750891854996,-460.0,0.00019178,2]
[367671086,1750891855006,-693.92,0.00019178,2]
[367671087,1750891855015,-771.68,0.00019178,2]
[367671088,1750891855028,-460.0,0.00019178,2]
[367671089,1750891855038,-807.81,0.00019178,2]
[367671090,1750891855048,-711.88,0.00019178,2]
[367671091,1750891855058,-460.0,0.00019178,2]
[367671092,1750891855068,-460.0,0.00019178,2]
[367671093,1750891855078,-460.0,0.00019178,2]
[367671094,1750891855087,-460.0,0.00019178,2]
[367671095,1750891855099,-483.19,0.00019178,2]
[367671096,1750891855109,-613.06,0.00019178,2]
[367671097,1750891855118,-460.0,0.00019178,2]
[367671098,1750891855128,-490.62790162,0.00019178,2]
[367671099,1750891855138,-3085.09,0.00019178,2]
[367671100,1750891855147,-460.0,0.00019178,2]
[367671101,1750891855156,-1930.66,0.00019178,2]
[367671102,1750891855166,-460.0,0.00019178,2]
[367671103,1750891855175,-460.0,0.00019178,2]
[367671104,1750891855184,-1847.84,0.00019178,2]
[367671105,1750891855194,-1162.98,0.00019178,2]
[367671106,1750891855203,-460.0,0.00019178,2]
[367671107,1750891855213,-856.31,0.00019178,2]
[367671108,1750891855222,-315.927704,0.00019178,2]
[367671109,1750891855231,-215.0,0.00019178,3]
[367671110,1750891855240,-587.0,0.00019363,2]
[367671111,1750891855249,-500.0,0.00019369,2]
[367671112,1750891855258,-500.0,0.00019369,2]
[367671113,1750891855268,-500.0,0.00019369,2]
[367671114,1750891855277,-500.0,0.00019369,2]
[367671115,1750891855286,-500.0,0.00019369,2]
[367671116,1750891855295,-500.0,0.00019369,2]
[367671117,1750891855304,-500.0,0.00019369,2]
[367671118,1750891855314,-500.0,0.00019369,2]
[367671119,1750891855323,-151.0,0.00019369,2]
[367671120,1750891855333,-151.0,0.00019369,2]
[367671121,1750891855342,-151.0,0.00019369,2]
[367671122,1750891855353,-183.28015549,0.00019369,2]
[367671123,1750891855362,-500.0,0.00019369,2]
[367671124,1750891855371,-151.0,0.00019369,2]
[367671125,1750891855381,-151.0,0.00019369,2]
[367671126,1750891855390,-500.0,0.00019369,2]
[367671127,1750891855399,-500.0,0.00019369,2]
[367671128,1750891855408,-500.0,0.00019369,2]
[367671129,1750891855419,-151.0,0.00019369,2]
[367671130,1750891855428,-151.0,0.00019369,2]
[367671131,1750891855437,-151.8409273,0.00019369,2]
[367671132,1750891855446,-151.0,0.00019369,2]
[367671133,1750891855455,-151.0,0.00019369,2]
[367671134,1750891855464,-152.14900843,0.00019369,2]
[367671135,1750891855474,-500.0,0.00019369,2]
[367671136,1750891855483,-151.0,0.00019369,2]
[367671137,1750891855492,-500.0,0.00019369,2]
[367671138,1750891855501,-168.67966396,0.00019369,2]
[367671139,1750891855511,-500.0,0.00019369,2]
[367671140,1750891855520,-151.0,0.00019369,2]
[367671141,1750891855529,-151.0,0.00019369,2]
[367671142,1750891855539,-500.0,0.00019369,2]
[367671143,1750891855548,-151.0,0.00019369,2]
[367671144,1750891855558,-151.0,0.00019369,2]
[367671145,1750891855568,-500.0,0.00019369,2]
[367671146,1750891855577,-151.0,0.00019369,2]
[367671147,1750891855586,-151.0,0.00019369,2]
[367671148,1750891855597,-500.0,0.00019369,2]
[367671149,1750891855607,-500.0,0.00019369,2]
[367671150,1750891855732,-500.0,0.00019382,2]
[367671151,1750891855743,-151.0,0.00019382,2]
[367671152,1750891855753,-151.0,0.00019382,2]
[367671153,1750891855763,-154.12063,0.00019382,2]
[367671154,1750891855773,-154.12063,0.00019382,2]
[367671155,1750891855783,-500.0,0.00019396,2]
[367671156,1750891855792,-500.0,0.00019396,2]
[367671157,1750891855802,-500.0,0.00019396,2]
[367671158,1750891855811,-500.0,0.00019396,2]
[367671159,1750891855821,-500.0,0.00019396,2]
[367671160,1750891855830,-500.0,0.00019396,2]
[367671161,1750891855840,-500.0,0.00019396,2]
[367671162,1750891855851,-500.0,0.00019396,2]
[367671163,1750891855860,-151.0,0.00019396,2]
[367671164,1750891855870,-151.0,0.00019396,2]
[367671165,1750891855879,-151.0,0.00019396,2]
[367671166,1750891855888,-500.0,0.00019396,2]
[367671167,1750891855898,-151.0,0.00019396,2]
[367671168,1750891855908,-151.0,0.00019396,2]
[367671169,1750891855918,-500.0,0.00019396,2]
[367671170,1750891855928,-500.0,0.00019396,2]
[367671171,1750891855937,-500.0,0.00019396,2]
[367671172,1750891855947,-151.0,0.00019396,2]
[367671173,1750891855956,-151.0,0.00019396,2]
[367671174,1750891855965,-151.0,0.00019396,2]
[367671175,1750891855975,-151.0,0.00019396,2]
[367671176,1750891855984,-622.36814974,0.00019396,2]
[367671177,1750891855993,-151.0,0.00019396,2]
[367671178,1750891856002,-500.0,0.00019396,2]
[367671179,1750891856012,-500.0,0.00019396,2]
[367671180,1750891856023,-151.0,0.00019396,2]
[367671181,1750891856034,-254.80061498,0.00019396,2]
[367671182,1750891856044,-500.0,0.00019396,2]
[367671183,1750891856054,-151.0,0.00019396,2]
[367671184,1750891856063,-500.0,0.00019396,2]
[367671185,1750891856075,-500.0,0.00019396,2]
[367671186,1750891856085,-500.0,0.00019396,2]
[367671187,1750891856096,-500.0,0.00019424,2]
[367671188,1750891856107,-500.0,0.00019424,2]
[367671189,1750891856116,-500.0,0.00019424,2]
[367671190,1750891856126,-500.0,0.00019424,2]
[367671191,1750891856135,-500.0,0.00019424,2]
[367671192,1750891856145,-500.0,0.00019424,2]
[367671193,1750891856154,-500.0,0.00019424,2]
[367671194,1750891856164,-500.0,0.00019424,2]
[367671195,1750891856173,-151.0,0.00019424,2]
[367671196,1750891856182,-151.0,0.00019424,2]
[367671197,1750891856192,-151.0,0.00019424,2]
[367671198,1750891856201,-500.0,0.00019424,2]
[367671199,1750891856210,-151.0,0.00019424,2]
[367671200,1750891856219,-151.0,0.00019424,2]
[367671201,1750891856228,-500.0,0.00019424,2]
[367671202,1750891856237,-500.0,0.00019424,2]
[367671203,1750891856246,-500.0,0.00019424,2]
[367671204,1750891856256,-198.76709495,0.00019424,2]
[367671205,1750891856264,-151.0,0.00019424,2]
[367671206,1750891856274,-151.0,0.00019424,2]
[367671207,1750891856282,-151.0,0.00019424,2]
[367671208,1750891856291,-198.0,0.00019424,2]
[367671209,1750891856301,-500.0,0.00019424,2]
[367671210,1750891856310,-500.0,0.00019424,2]
[367671211,1750891856320,-376.49677417,0.00019424,2]
[367671212,1750891856329,-151.0,0.00019424,2]
[367671213,1750891856341,-500.0,0.00019424,2]
[367671214,1750891856351,-500.0,0.00019424,2]
[367671215,1750891856360,-500.0,0.00019424,2]
[367671216,1750891856370,-151.0,0.00019451,2]
[367671217,1750891856379,-500.0,0.00019451,2]
[367671218,1750891856389,-561.55586604,0.00019451,2]
[367671219,1750891856398,-500.0,0.00019451,2]
[367671220,1750891856407,-500.0,0.00019451,2]
[367671221,1750891856416,-500.0,0.00019451,2]
[367671222,1750891856425,-500.0,0.00019451,2]
[367671223,1750891856434,-500.0,0.00019451,2]
[367671224,1750891856444,-192.4422019,0.00019451,2]
[367671225,1750891856453,-151.0,0.00019451,2]
[367671226,1750891856462,-151.0,0.00019451,2]
[367671227,1750891856471,-151.0,0.00019451,2]
[367671228,1750891856481,-500.0,0.00019451,2]
[367671229,1750891856490,-500.0,0.00019451,2]
[367671230,1750891856499,-292.00950483,0.00019451,2]
[367671231,1750891856508,-164.70744157,0.00019451,2]
[367671232,1750891856517,-500.0,0.00019451,2]
[367671233,1750891856527,-312.58157554,0.00019451,2]
[367671234,1750891856536,-151.0,0.00019451,2]
[367671235,1750891856546,-500.0,0.00019451,2]
[367671236,1750891856555,-500.0,0.00019451,2]
[367671237,1750891856565,-500.0,0.00019451,2]
[367671238,1750891856574,-543.48,0.00019452,2]
[367671239,1750891856584,-716.39,0.00019452,2]
[367671240,1750891856593,-809.74,0.00019452,2]
[367671241,1750891856603,-1048.8,0.00019452,2]
[367671242,1750891856612,-465.4,0.00019452,2]
[367671243,1750891856622,-177.996878,0.00019452,2]
[367671244,1750891856631,-151.0,0.00019452,2]
[367671245,1750891856641,-460.0,0.00019452,2]
[367671246,1750891856650,-742.19,0.00019452,2]
[367671247,1750891856660,-460.0,0.00019452,2]
[367671248,1750891856670,-693.92,0.00019452,2]
[367671249,1750891856680,-771.68,0.00019452,2]
[367671250,1750891856689,-460.0,0.00019452,2]
[367671251,1750891856698,-807.81,0.00019452,2]
[367671252,1750891856708,-711.88,0.00019452,2]
[367671253,1750891856717,-460.0,0.00019452,2]
[367671254,1750891856729,-591.45,0.00019452,2]
[367671255,1750891856739,-460.0,0.00019452,2]
[367671256,1750891856750,-251.3,0.00019452,2]
[367671257,1750891856759,-613.06,0.00019452,2]
[367671258,1750891856769,-460.0,0.00019452,2]
[367671259,1750891856778,-3085.09,0.00019452,2]
[367671260,1750891856788,-460.0,0.00019452,2]
[367671261,1750891856798,-156.537637,0.00019452,2]
[367671262,1750891856807,-151.0,0.00019452,2]
[367671263,1750891856817,-1930.66,0.00019452,2]
[367671264,1750891856826,-156.537637,0.00019452,2]
[367671265,1750891856835,-203.14,0.00019452,2]
[367671266,1750891856845,-460.0,0.00019452,2]
[367671267,1750891856855,-1847.84,0.00019452,2]
[367671268,1750891856865,-1162.98,0.00019452,2]
[367671269,1750891856874,-460.0,0.00019452,2]
[367671270,1750891856884,-856.31,0.00019452,2]
[367671271,1750891856894,-500.0,0.00019479,2]
[367671272,1750891856904,-151.0,0.00019479,2]
[367671273,1750891856913,-500.0,0.00019479,2]
[367671274,1750891856923,-500.0,0.00019479,2]
[367671275,1750891856932,-548.5341841,0.00019479,2]
[367671276,1750891856942,-151.00261681,0.00019479,2]
[367671277,1750891856951,-246.01127713,0.00019479,2]
[367671278,1750891856960,-245.58172341,0.00019479,2]
[367671279,1750891856970,-248.78848359,0.00019479,2]
[367671280,1750891856980,-329.16333721,0.00019479,2]
[367671281,1750891856989,-196.91395842,0.00019479,2]
[367671282,1750891856999,-201.0856224,0.00019479,2]
[367671283,1750891857009,-603.97515036,0.00019479,2]
[367671284,1750891857018,-500.0,0.00019479,2]
[367671285,1750891857033,-500.0,0.00019479,2]
[367671286,1750891857043,-500.0,0.00019485,2]
[367671287,1750891857052,-500.0,0.00019485,2]
[367671288,1750891857062,-500.0,0.00019485,2]
[367671289,1750891857071,-500.0,0.00019485,2]
[367671290,1750891857081,-500.0,0.00019485,2]
[367671291,1750891857090,-500.0,0.00019485,2]
[367671292,1750891857101,-500.0,0.00019485,2]
[367671293,1750891857111,-500.0,0.00019485,2]
[367671294,1750891857120,-500.0,0.00019485,2]
[367671295,1750891857129,-228.0,0.00019492,2]
[367671296,1750891857138,-500.0,0.00019506,2]
[367671297,1750891857147,-500.0,0.00019506,2]
[367671298,1750891857156,-500.0,0.00019506,2]
[367671299,1750891857165,-500.0,0.00019506,2]
[367671300,1750891857174,-500.0,0.00019529,2]
[367671301,1750891857183,-500.0,0.00019529,2]
[367671302,1750891857193,-500.0,0.00019529,2]
[367671303,1750891857202,-500.0,0.00019529,2]
[367671304,1750891857212,-500.0,0.00019529,2]
[367671305,1750891857221,-500.0,0.00019529,2]
[367671306,1750891857230,-500.0,0.00019529,2]
[367671307,1750891857239,-500.0,0.00019529,2]
[367671308,1750891857249,-500.0,0.00019529,2]
[367671309,1750891857258,-500.0,0.00019529,2]
[367671310,1750891857267,-500.0,0.00019529,2]
[367671311,1750891857277,-500.0,0.00019529,2]
[367671312,1750891857286,-500.0,0.00019529,2]
[367671313,1750891857295,-500.0,0.00019529,2]
[367671314,1750891857304,-500.0,0.00019529,2]
[367671315,1750891857313,-500.0,0.00019529,2]
[367671316,1750891857322,-500.0,0.00019529,2]
[367671317,1750891857331,-500.0,0.00019533,2]
[367671318,1750891857340,-271.97,0.00019533,2]
[367671319,1750891857350,-500.0,0.00019533,2]
[367671320,1750891857359,-396.0,0.00019533,2]
[367671321,1750891857368,-287.61097249,0.00019559,2]
[367671322,1750891857377,-500.0,0.00019561,2]
[367671323,1750891857387,-500.0,0.00019588,2]
[367671324,1750891857396,-500.0,0.00019616,2]
[367671325,1750891857406,-618.0,0.00019643,2]
[367671326,1750891857415,-965.0,0.00019712,2]
[367671327,1750891857424,-654.0,0.00019712,2]
[367671328,1750891857433,-2161.0,0.00019712,2]
[367671329,1750891857442,-543.48,0.00019726,2]
[367671330,1750891857452,-716.39,0.00019726,2]
[367671331,1750891857460,-809.74,0.00019726,2]
[367671332,1750891857469,-1048.8,0.00019726,2]
[367671333,1750891857478,-465.4,0.00019726,2]
[367671334,1750891857487,-460.0,0.00019726,2]
[367671335,1750891857497,-742.19,0.00019726,2]
[367671336,1750891857506,-282.75346577,0.00019726,2]
[367671337,1750891857516,-693.92,0.00019726,2]
[367671338,1750891857525,-771.68,0.00019726,2]
[367671339,1750891857534,-460.0,0.00019726,2]
[367671340,1750891857544,-807.81,0.00019726,2]
[367671341,1750891857553,-711.88,0.00019726,2]
[367671342,1750891857562,-460.0,0.00019726,2]
[367671343,1750891857572,-460.0,0.00019726,2]
[367671344,1750891857581,-613.06,0.00019726,2]
[367671345,1750891857590,-460.0,0.00019726,2]
[367671346,1750891857600,-3085.09,0.00019726,2]
[367671347,1750891857609,-460.0,0.00019726,2]
[367671348,1750891857617,-1930.66,0.00019726,2]
[367671349,1750891857627,-197.57,0.00019726,2]
[367671350,1750891857635,-1847.84,0.00019726,2]
[367671351,1750891857645,-1162.98,0.00019726,2]
[367671352,1750891857654,-460.0,0.00019726,2]
[367671353,1750891857664,-856.31,0.00019726,2]
[367671354,1750891857672,-228.0,0.00019863,2]
[367671355,1750891857681,-1000.0,0.0001993,2]
[367671356,1750891857690,-2200.0,0.0001994,2]
[367671357,1750891857699,-187.829674,0.0002,2]
[367671358,1750891857708,-223.453961,0.0002,2]
[367671359,1750891857717,-223.453961,0.0002,2]
[367671360,1750891857726,-543.48,0.0002,2]
[367671361,1750891857735,-151.0,0.0002,2]
[367671362,1750891857744,-151.0,0.0002,2]
[367671363,1750891857754,-716.39,0.0002,2]
[367671364,1750891857764,-809.74,0.0002,2]
[367671365,1750891857774,-151.0,0.0002,2]
[367671366,1750891857783,-1048.8,0.0002,2]
[367671367,1750891857793,-151.0,0.0002,2]
[367671368,1750891857802,-465.4,0.0002,2]
[367671369,1750891857812,-460.0,0.0002,2]
[367671370,1750891857821,-990.716068,0.0002,2]
[367671371,1750891857831,-990.716068,0.0002,2]
[367671372,1750891857841,-742.19,0.0002,2]
[367671373,1750891857850,-693.92,0.0002,2]
[367671374,1750891857860,-771.68,0.0002,2]
[367671375,1750891857870,-460.0,0.0002,2]
[367671376,1750891857879,-807.81,0.0002,2]
[367671377,1750891857889,-711.88,0.0002,2]
[367671378,1750891857898,-460.0,0.0002,2]
[367671379,1750891857907,-460.0,0.0002,2]
[367671380,1750891857916,-613.06,0.0002,2]
[367671381,1750891857925,-460.0,0.0002,2]
[367671382,1750891857934,-3085.09,0.0002,2]
[367671383,1750891857943,-460.0,0.0002,2]
[367671384,1750891857952,-1930.66,0.0002,2]
[367671385,1750891857961,-1847.84,0.0002,2]
[367671386,1750891857970,-1162.98,0.0002,2]
[367671387,1750891857980,-460.0,0.0002,2]
[367671388,1750891857990,-856.31,0.0002,2]
[367671389,1750891857999,-1000.0,0.00020033,2]
[367671390,1750891858009,-1000.0,0.00020033,2]
[367671391,1750891858017,-1001.08000748,0.00020033,2]
[367671392,1750891858029,-1000.0,0.00020033,2]
[367671393,1750891858039,-1000.0,0.00020033,2]
[367671394,1750891858048,-1000.0,0.00020033,2]
[367671395,1750891858057,-1000.0,0.00020033,2]
[367671396,1750891858067,-1000.0,0.00020033,2]
[367671397,1750891858075,-1000.0,0.00020033,2]